bitfinex-derivatives/quotes_ETHF0:USTF0_20210102
["timestamp","ask_amount","ask_price","bid_price","bid_amount"]
[1609550111686,0.324,716.03,715.82,6.01438]
[1609550112588,5.09909464,716.02,715.82,6.01438]
[1609550113189,5.09909464,716.02,715.94,6.01438]
[1609550115092,6.01438,715.95,715.94,6.01438]
[1609550115492,2.60203988,715.99,715.94,6.01438]
[1609550117892,0.324,716.03,715.94,6.01438]
[1609550119191,6.01438,715.95,715.94,6.01438]
[1609550119592,6.01438,715.95,715.41,2.8203]
[1609550120292,6.01438,715.95,715.33,3.758]
[1609550121094,15.0,716.02,715.73,6.01438]
[1609550121293,3.922,716.07,715.73,6.01438]
[1609550121494,2.6057098,716.13,715.73,6.01438]
[1609550122093,2.60630378,716.06,715.73,6.01438]
[1609550122293,6.33930378,716.06,715.73,6.01438]
[1609550123094,6.33930378,716.06,716.0,6.01438]
[1609550123694,3.733,716.06,716.0,6.01438]
[1609550127605,6.01438,716.21,716.0,6.01438]
[1609550127804,2.6169061,716.37,716.0,6.01438]
[1609550128204,2.61661879,716.35,716.0,6.01438]
[1609550128703,6.77261879,716.35,716.0,6.01438]
[1609550129203,6.77261879,716.35,716.14,6.01438]
[1609550129204,6.01438,716.19,716.14,6.01438]
[1609550129405,10.09038,716.19,716.14,6.01438]
[1609550130004,4.076,716.19,716.14,6.01438]
[1609550131908,4.076,716.19,715.7,2.8153]
[1609550133211,4.076,716.19,716.18,6.01438]
[1609550134611,4.156,716.35,716.18,6.01438]
[1609550135011,2.61636398,716.36,716.18,6.01438]
[1609550135311,2.61636398,716.36,716.35,6.01438]
[1609550141221,6.398e-05,716.36,716.35,6.01438]
[1609550142424,5.24726302,716.57,716.35,6.01438]
[1609550142826,5.02736302,716.57,716.35,6.01438]
[1609550143026,11.45659896,716.74,716.35,6.01438]
[1609550143426,11.45659896,716.74,716.73,6.01438]
[1609550143827,21.26953169,717.02,716.73,6.01438]
[1609550143828,1.9701083,716.82,716.73,6.01438]
[1609550144529,1.97225478,716.85,716.73,6.01438]
[1609550145327,1.97225478,716.85,716.84,6.01438]
[1609550146128,11.51118861,717.19,716.84,6.01438]
[1609550147129,5.16272588,716.91,716.84,6.01438]
[1609550150033,1.97368155,716.87,716.84,6.01438]
[1609550151033,3.188,716.91,716.84,6.01438]
[1609550152037,1.97350889,716.88,716.84,6.01438]
[1609550152435,6.58450889,716.88,716.84,6.01438]
[1609550152836,4.611,716.88,716.84,6.01438]
[1609550153034,4.4374,716.88,716.84,6.01438]
[1609550153236,1.2376,716.88,716.84,6.01438]
[1609550154236,0.45048382,716.89,716.84,6.01438]
[1609550154437,2.7428507,716.9,716.84,6.01438]
[1609550155241,5.76599783,717.24,716.84,6.01438]
[1609550155441,5.76599783,717.24,717.23,6.01438]
[1609550156243,5.09024014,717.24,717.23,6.01438]
[1609550156843,5.77652724,717.45,717.23,6.01438]
[1609550157143,5.77594697,717.44,717.23,6.01438]
[1609550157545,5.77594697,717.44,717.43,6.01438]
[1609550157745,5.77758907,717.46,717.43,6.01438]
[1609550158146,5.77704776,717.45,717.43,6.01438]
[1609550159846,5.77587358,717.46,717.43,6.01438]
[1609550160045,5.77587358,717.46,717.02,2.7561]
[1609550160647,4.842,717.54,717.02,2.7561]
[1609550160648,5.08791974,717.44,717.02,2.7561]
[1609550161447,5.08791974,717.44,717.43,6.01438]
[1609550161647,4.842,717.54,717.43,6.01438]
[1609550161847,5.78861177,717.81,717.43,6.01438]
[1609550162949,3.30432068,717.8,717.43,6.01438]
[1609550163149,7.76232068,717.8,717.43,6.01438]
[1609550163553,6.01438,717.78,717.72,6.01438]
[1609550164152,5.78884572,717.75,717.72,6.01438]
[1609550165154,5.08741064,717.77,717.72,6.01438]
[1609550165957,5.08706976,717.74,717.72,6.01438]
[1609550166556,5.0870259,717.79,717.72,6.01438]
[1609550167658,5.0868927,717.73,717.72,6.01438]
[1609550169863,5.08637794,717.79,717.72,6.01438]
[1609550170462,4.458,717.8,717.72,6.01438]
[1609550170663,3.31514606,717.91,717.72,6.01438]
[1609550171465,3.31514606,717.91,717.9,6.01438]
[1609550172072,2.00134606,717.91,717.9,6.01438]
[1609550172273,1.31484606,717.91,717.9,6.01438]
[1609550172673,0.58524606,717.91,717.9,6.01438]
[1609550173575,5.08486842,717.91,717.9,6.01438]
[1609550173775,5.08486842,717.91,717.79,2.8275]
[1609550173977,8.95186842,717.91,717.79,2.8275]
[1609550174175,8.95186842,717.91,717.9,6.01438]
[1609550174376,3.867,717.91,717.9,6.01438]
[1609550174776,3.867,717.91,717.61,2.7524]
[1609550175377,8.9524815,717.91,717.61,2.7524]
[1609550176176,5.08578112,717.9,717.61,2.7524]
[1609550176879,6.52194068,717.91,717.61,2.7524]
[1609550178280,6.52194068,717.91,717.9,6.01438]
[1609550180380,8.95234766,717.91,717.9,6.01438]
[1609550184382,8.95234766,717.91,717.8,2.8054]
[1609550184583,3.867,717.91,717.59,2.7826]
[1609550184785,2.983,717.91,717.59,2.7826]
[1609550184984,8.0677659,717.91,717.9,6.01438]
[1609550186185,2.983,717.91,717.9,6.01438]
[1609550187085,0.193,717.91,717.9,6.01438]
[1609550187687,2.65894105,718.16,717.9,6.01438]
[1609550187688,3.547,718.09,717.9,6.01438]
[1609550189088,3.547,718.09,718.08,6.01438]
[1609550189289,2.66192307,718.34,718.08,6.01438]
[1609550189688,1.88392307,718.34,718.08,6.01438]
[1609550190190,1.88392307,718.34,718.08,8.78088]
[1609550190591,5.83261991,718.54,718.08,8.78088]
[1609550190992,5.83261991,718.54,718.53,6.01438]
[1609550191794,16.79955069,718.61,718.53,6.01438]
[1609550192398,5.83293812,718.55,718.53,6.01438]
[1609550192593,10.24093812,718.55,718.53,6.01438]
[1609550193695,4.408,718.55,718.53,6.01438]
[1609550194594,5.08215166,718.54,718.53,6.01438]
[1609550196400,4.12095166,718.55,718.53,6.01438]
[1609550196600,3.63095166,718.55,718.53,6.01438]
[1609550197601,3.33359943,718.73,718.53,6.01438]
[1609550199099,15.0,719.64,718.43,2.7579]
[1609550199100,3.33419837,718.77,718.72,6.01438]
[1609550199501,0.56419837,718.77,718.72,6.01438]
[1609550200106,15.01222815,719.05,718.72,6.01438]
[1609550200107,5.84598563,718.92,718.72,6.01438]
[1609550200904,5.84598563,718.92,718.64,2.7707]
[1609550201105,1.33633924,718.8,718.64,2.7707]
[1609550201304,1.33633924,718.8,718.79,6.01438]
[1609550201704,1.33633924,718.8,718.64,2.7707]
[1609550201905,3.37,718.93,718.64,2.7707]
[1609550201906,1.3373092,718.91,718.64,2.7707]
[1609550202205,1.1225092,718.91,718.64,2.7707]
[1609550203006,3.37,718.93,718.64,2.7707]
[1609550203406,3.37,718.93,718.52,3.604]
[1609550203610,3.37,718.93,718.92,6.01438]
[1609550206109,5.86061093,718.99,718.92,6.01438]
[1609550206908,11.71286151,719.13,718.92,6.01438]
[1609550206909,5.85932797,718.96,718.92,6.01438]
[1609550207108,8.90332797,718.96,718.92,6.01438]
[1609550207908,3.044,718.96,718.92,6.01438]
[1609550212112,5.85434578,718.99,718.92,6.01438]
[1609550212313,4.252,718.96,718.92,6.01438]
[1609550213113,17.752,718.96,718.92,6.01438]
[1609550213412,5.84418025,718.93,718.92,6.01438]
[1609550214816,17.752,718.96,718.92,6.01438]
[1609550217620,17.752,718.96,718.66,2.7937]
[1609550218222,17.752,718.96,718.95,6.01438]
[1609550218422,16.472,718.96,718.95,6.01438]
[1609550219022,14.952,718.96,718.95,6.01438]
[1609550225334,13.7928,718.96,718.95,6.01438]
[1609550230346,13.0589,718.96,718.95,6.01438]
[1609550236949,10.2529,718.96,718.95,6.01438]
[1609550243156,8.8568,718.96,718.95,6.01438]
[1609550252270,23.8568,718.96,718.95,6.01438]
[1609550253469,23.8568,718.96,718.43,11.84954294]
[1609550254570,8.8568,718.96,718.95,6.01438]
[1609550254973,13.93645036,718.96,718.44,2.8119]
[1609550256073,0.16655068,718.61,718.44,2.8119]
[1609550256472,0.16655068,718.61,718.6,6.01438]
[1609550256672,0.16655068,718.61,718.44,2.8119]
[1609550256874,3.297,718.64,718.44,2.8119]
[1609550257774,1.7186,718.64,718.44,2.8119]
[1609550258374,0.16677849,718.84,718.44,2.8119]
[1609550258575,7.07747092,718.96,718.63,6.01438]
[1609550258776,7.07747092,718.96,718.64,2.7983]
[1609550260480,7.07747092,718.96,718.95,6.01438]
[1609550265591,6.07747092,718.96,718.95,6.01438]
[1609550266990,4.32747092,718.96,718.95,6.01438]
[1609550267192,1.55747092,718.96,718.95,6.01438]
[1609550267391,2.70557092,719.01,718.88,2.8121]
[1609550267594,2.00343081,719.11,718.88,2.8121]
[1609550267792,0.53225247,719.25,718.88,2.8121]
[1609550268293,5.85755735,719.36,718.88,2.8121]
[1609550268491,5.85755735,719.36,719.35,6.01438]
[1609550271894,5.86344881,719.52,719.35,6.01438]
[1609550272495,5.86344881,719.52,719.51,6.01438]
[1609550272998,5.86344881,719.52,719.29,2.8191]
[1609550273199,9.77644881,719.52,719.29,2.8191]
[1609550273799,3.913,719.52,719.29,2.8191]
[1609550274499,2.32537725,719.51,719.29,2.8191]
[1609550275601,5.07431991,719.5,719.29,2.8191]
[1609550276102,4.13861991,719.5,719.29,2.8191]
[1609550276300,1.37861991,719.5,719.29,2.8191]
[1609550276500,1.91851991,719.52,719.49,6.01438]
[1609550277302,5.74029853,719.71,719.29,2.8191]
[1609550277703,5.42649853,719.71,719.29,2.8191]
[1609550278607,5.42649853,719.71,719.7,6.01438]
[1609550279308,8.38732832,719.95,719.7,6.01438]
[1609550280107,15.0,719.94,719.7,6.01438]
[1609550280307,18.865,719.94,719.7,6.01438]
[1609550280507,3.865,719.94,719.7,6.01438]
[1609550280707,3.865,719.94,719.93,6.01438]
[1609550282108,3.865,719.94,719.51,2.7787]
[1609550282708,3.865,719.94,719.93,6.01438]
[1609550285410,15.0,720.12,719.93,6.01438]
[1609550285611,23.40180943,720.12,719.93,6.01438]
[1609550285810,8.40180943,720.12,719.93,6.01438]
[1609550286512,8.40141878,720.13,719.93,6.01438]
[1609550286710,8.40141878,720.13,720.12,6.01438]
[1609550287612,8.40557376,720.19,720.12,6.01438]
[1609550288612,8.40557376,720.19,719.73,2.7924]
[1609550288814,13.32357376,720.19,719.73,2.7924]
[1609550289015,13.32357376,720.19,720.18,6.01438]
[1609550291918,4.918,720.19,720.18,6.01438]
[1609550294025,13.32243543,720.19,720.18,6.01438]
[1609550296428,4.918,720.19,720.18,6.01438]
[1609550296627,5.88912424,720.2,720.18,6.01438]
[1609550296930,8.40943418,720.27,720.18,6.01438]
[1609550297128,8.40943418,720.27,720.26,6.01438]
[1609550297827,11.76111779,720.3,720.26,6.01438]
[1609550298629,8.39688912,720.28,720.26,6.01438]
[1609550298830,12.37488912,720.28,720.26,6.01438]
[1609550300134,3.978,720.28,720.26,6.01438]
[1609550300332,3.978,720.28,719.96,2.7478]
[1609550300935,9.86153288,720.28,719.96,2.7478]
[1609550301135,9.86153288,720.28,720.27,6.01438]
[1609550301535,9.86153288,720.28,719.96,2.7478]
[1609550302036,2.68602543,720.18,719.96,2.7478]
[1609550303139,2.68602543,720.18,720.17,6.01438]
[1609550303739,3.978,720.28,720.17,6.01438]
[1609550303740,2.68618036,720.22,720.17,6.01438]
[1609550305044,3.978,720.28,720.17,6.01438]
[1609550305241,3.978,720.28,720.27,6.01438]
[1609550305443,2.68831427,720.33,720.27,6.01438]
[1609550306943,15.0,720.87,720.27,6.01438]
[1609550306944,2.68977523,720.38,720.27,6.01438]
[1609550307343,2.68977523,720.38,720.37,6.01438]
[1609550307646,2.68977523,720.38,719.77,4.261]
[1609550307844,2.68854798,720.33,719.77,4.261]
[1609550308446,2.68854798,720.33,719.66,11.82707898]
[1609550308947,3.456,720.38,719.61,2.98]
[1609550308948,2.6885744,720.34,719.67,11.82665557]
[1609550309247,2.6885744,720.34,720.33,6.01438]
[1609550309647,6.14538181,720.38,720.33,6.01438]
[1609550312951,5.06853702,720.37,720.33,6.01438]
[1609550314550,3.456,720.38,720.33,6.01438]
[1609550314750,2.68912368,720.4,720.33,6.01438]
[1609550315454,15.0,721.21,720.33,6.01438]
[1609550315455,5.06800289,720.36,720.33,6.01438]
[1609550315852,9.68900289,720.36,720.33,6.01438]
[1609550317853,4.621,720.36,720.33,6.01438]
[1609550318853,4.621,720.36,719.86,3.095]
[1609550319053,4.621,720.36,719.79,11.82523349]
[1609550319454,4.621,720.36,720.35,6.01438]
[1609550319853,4.621,720.36,719.86,3.274]
[1609550320054,0.50423602,720.14,719.86,3.274]
[1609550320656,7.75823974,720.35,719.86,3.274]
[1609550320657,0.08398183,720.03,719.86,3.274]
[1609550321454,0.08398183,720.03,720.02,6.01438]
[1609550321655,2.68678489,720.19,720.02,6.01438]
[1609550322455,5.88573814,720.33,720.02,6.01438]
[1609550322456,2.68488767,720.11,720.02,6.01438]
[1609550323259,2.68513003,720.12,720.02,6.01438]
[1609550323457,2.68513003,720.12,720.1,6.01438]
[1609550324659,2.68469876,720.11,720.1,6.01438]
[1609550326660,2.68580724,720.18,720.1,6.01438]
[1609550327865,2.01486251,720.13,720.1,6.01438]
[1609550328466,2.01515164,720.15,720.1,6.01438]
[1609550329965,5.06990647,720.12,720.1,6.01438]
[1609550330968,2.01473881,720.12,720.1,6.01438]
[1609550333571,2.01490655,720.14,720.1,6.01438]
[1609550334071,13.5,720.12,720.1,6.01438]
[1609550334872,14.84446694,720.12,720.1,6.01438]
[1609550336176,13.5,720.12,720.1,6.01438]
[1609550336873,14.8444521,720.12,720.1,6.01438]
[1609550339081,13.5,720.12,720.1,6.01438]
[1609550342578,18.279,720.12,720.1,6.01438]
[1609550342780,5.06958114,720.11,720.1,6.01438]
[1609550346684,5.06958114,720.11,719.61,2.98]
[1609550346884,5.06958114,720.11,719.47,11.82889459]
[1609550347285,5.06958114,720.11,718.76,11.6859]
[1609550347286,15.0,720.1,719.42,11.8301178]
[1609550347488,6.01438,720.03,719.92,6.01438]
[1609550347887,15.0,720.1,719.92,6.01438]
[1609550348287,5.06958114,720.11,719.92,6.01438]
[1609550348489,2.01545756,719.96,719.92,6.01438]
[1609550348689,6.44145756,719.96,719.92,6.01438]
[1609550349490,1.34426165,719.95,719.92,6.01438]
[1609550350193,5.77038837,719.96,719.92,6.01438]
[1609550351491,4.426,719.96,719.92,6.01438]
[1609550352893,0.08404277,719.93,719.92,6.01438]
[1609550353894,4.426,719.96,719.92,6.01438]
[1609550354094,0.50543665,719.99,719.92,6.01438]
[1609550355497,0.08424108,720.01,719.92,6.01438]
[1609550356397,0.08424985,720.02,719.92,6.01438]
[1609550357397,0.08424985,720.02,720.01,6.01438]
[1609550359199,0.50557148,720.05,720.01,6.01438]
[1609550359899,0.50571871,720.09,720.01,6.01438]
[1609550362201,18.279,720.12,720.01,6.01438]
[1609550362202,0.50565059,720.1,720.01,6.01438]
[1609550363302,18.279,720.12,720.01,6.01438]
[1609550363501,18.279,720.12,720.11,6.01438]
[1609550373616,33.279,720.12,720.11,6.01438]
[1609550374516,33.279,720.12,719.6,11.82711031]
[1609550374716,40.36911582,720.12,719.53,16.46445287]
[1609550375517,1.34729966,720.02,719.98,6.01438]
[1609550378819,1.34732059,720.0,719.98,6.01438]
[1609550380022,2.69227681,720.03,719.98,6.01438]
[1609550382326,2.01992888,720.0,719.98,6.01438]
[1609550383527,7.76301895,720.07,719.98,6.01438]
[1609550383528,7.08977402,720.02,719.98,6.01438]
[1609550384127,1.34802288,720.05,719.98,6.01438]
[1609550385329,0.54763191,720.0,719.98,6.01438]
[1609550386627,18.279,720.12,719.98,6.01438]
[1609550386628,0.54823065,720.11,719.98,6.01438]
[1609550387629,18.279,720.12,719.62,4.3308]
[1609550387630,18.279,720.12,720.1,6.01438]
[1609550413656,33.279,720.12,720.1,6.01438]
[1609550415859,18.279,720.12,720.1,6.01438]
[1609550419263,18.82797485,720.12,720.1,6.01438]
[1609550426374,18.279,720.12,720.1,6.01438]
[1609550433685,33.279,720.12,720.1,6.01438]
[1609550435086,33.279,720.12,719.73,11.82177789]
[1609550435485,33.279,720.12,719.62,0.4748]
[1609550436288,33.279,720.12,720.11,6.01438]
[1609550436987,18.279,720.12,720.11,6.01438]
[1609550437188,38.34823366,720.12,720.11,6.01438]
[1609550438491,38.34823366,720.12,719.62,0.4748]
[1609550439192,0.71809484,719.96,719.62,0.4748]
[1609550439391,4.67109484,719.96,719.62,0.4748]
[1609550439591,4.67109484,719.96,719.74,0.6]
[1609550440492,4.67109484,719.96,719.95,6.01438]
[1609550440994,19.67109484,719.96,719.95,6.01438]
[1609550441495,19.12196349,719.96,719.95,6.01438]
[1609550442293,4.12196349,719.96,719.95,6.01438]
[1609550442697,4.67104674,719.96,719.95,6.01438]
[1609550443796,3.953,719.96,719.95,6.01438]
[1609550444396,0.71801532,720.01,719.95,6.01438]
[1609550445598,0.71794638,720.1,719.95,6.01438]
[1609550446498,0.71794638,720.1,719.74,0.6]
[1609550446499,0.71794638,720.1,720.09,6.01438]
[1609550446701,18.279,720.12,720.09,6.01438]
[1609550453304,18.279,720.12,719.98,11.78029769]
[1609550454405,18.279,720.12,720.07,11.77114764]
[1609550454607,18.279,720.12,720.11,6.01438]
[1609550460214,18.279,720.12,720.09,11.76779311]
[1609550460816,18.279,720.12,720.11,6.01438]
[1609550475642,33.279,720.12,720.11,6.01438]
[1609550475841,33.279,720.12,719.89,11.75808837]
[1609550476443,33.279,720.12,719.87,11.76317463]
[1609550477241,33.279,720.12,720.11,6.01438]
[1609550478246,18.279,720.12,720.11,6.01438]
[1609550495969,18.279,720.12,720.11,17.72659294]
[1609550497067,18.279,720.12,720.11,6.01438]
[1609550503772,33.279,720.12,720.11,6.01438]
[1609550504872,18.279,720.12,720.11,6.01438]
[1609550527099,13.5,720.12,720.11,6.01438]
[1609550527500,13.5,720.12,720.11,24.43114128]
[1609550528703,9.27995405,720.12,720.11,6.01438]
[1609550537409,5.05999926,720.12,720.11,6.01438]
[1609550545923,0.84020274,720.12,720.11,6.01438]
[1609550546724,0.84020274,720.12,720.06,4.267]
[1609550546924,0.84020274,720.12,720.03,21.75028402]
[1609550547124,0.84020274,720.12,720.11,18.41242107]
[1609550547825,0.84020274,720.12,720.11,24.42680107]
[1609550548228,0.84020274,720.12,720.11,6.01438]
[1609550549428,0.84020274,720.12,720.11,17.74673858]
[1609550550129,0.84020274,720.12,720.11,6.01438]
[1609550555635,0.84020274,720.12,720.07,11.73687672]
[1609550556135,0.84020274,720.12,720.11,6.01438]
[1609550583169,0.84020274,720.12,719.82,11.79857661]
[1609550583369,15.0,720.11,719.82,11.79857661]
[1609550583971,15.0,720.11,719.76,11.80480989]
[1609550584571,15.0,720.11,720.1,6.01438]
[1609550584770,4.40320274,720.12,720.1,6.01438]
[1609550585270,19.40320274,720.12,720.1,6.01438]
[1609550590478,19.40320274,720.12,719.74,0.6]
[1609550590679,15.0,720.1,719.93,6.01438]
[1609550591679,0.71828048,719.97,719.93,6.01438]
[1609550591878,4.47428048,719.97,719.93,6.01438]
[1609550592080,15.0,719.96,719.93,6.01438]
[1609550592581,0.84503021,719.94,719.74,0.6]
[1609550593179,0.84503021,719.94,719.92,6.01438]
[1609550593880,0.84503021,719.94,719.74,0.6]
[1609550595082,6.01438,719.75,719.74,0.6]
[1609550595482,10.72538,719.75,719.74,0.6]
[1609550595885,4.711,719.75,719.74,0.6]
[1609550597087,4.711,719.75,719.74,6.61438]
[1609550600589,3.756,719.97,719.74,6.61438]
[1609550600789,4.112,719.75,719.74,6.61438]
[1609550605694,3.756,719.97,719.74,6.61438]
[1609550606094,4.40320274,720.12,719.74,6.61438]
[1609550607297,4.40320274,720.12,720.11,6.01438]
[1609550610099,19.40320274,720.12,719.74,0.6]
[1609550610501,20.24795422,720.12,719.74,0.6]
[1609550611300,6.01438,720.08,720.03,6.01438]
[1609550611501,15.71805938,720.07,720.03,6.01438]
[1609550613007,0.71811454,720.04,720.03,6.01438]
[1609550614108,0.84484621,720.05,720.03,6.01438]
[1609550616817,0.71812719,720.06,720.03,6.01438]
[1609550617814,0.84485989,720.05,720.03,6.01438]
[1609550618912,0.71811767,720.04,720.03,6.01438]
[1609550623515,0.84484432,720.06,720.03,6.01438]
[1609550623516,0.71809205,720.06,720.03,6.01438]
[1609550625619,0.71787569,720.13,720.03,6.01438]
[1609550627020,2.70259087,720.32,720.03,6.01438]
[1609550627021,3.88085584,720.28,720.03,6.01438]
[1609550627418,3.88085584,720.28,720.11,6.01438]
[1609550628421,3.163,720.28,720.11,6.01438]
[1609550638436,0.71790298,720.26,720.11,6.01438]
[1609550639636,0.71793409,720.22,720.11,6.01438]
[1609550640537,0.71793891,720.2,720.11,6.01438]
[1609550641637,19.40320274,720.12,719.74,0.6]
[1609550643540,6.01438,720.02,719.98,6.01438]
[1609550644337,4.40320274,720.12,719.98,6.01438]
[1609550645041,5.12127214,720.12,719.98,6.01438]
[1609550645540,5.12127214,720.12,719.74,0.6]
[1609550646450,0.71807947,720.07,719.74,0.6]
[1609550647542,0.71807947,720.07,720.02,6.01438]
[1609550648745,0.7180682,720.05,720.02,6.01438]
[1609550651848,0.71811456,720.03,720.02,6.01438]
[1609550653451,0.84489412,720.03,719.74,0.6]
[1609550653652,0.84489412,720.03,719.92,6.01438]
[1609550654556,0.71828053,719.97,719.92,6.01438]
[1609550654955,4.96128053,719.97,719.92,6.01438]
[1609550655356,4.96128053,719.97,719.74,0.6]
[1609550655758,4.243,719.97,719.74,0.6]
[1609550655958,6.01438,719.94,719.92,6.01438]
[1609550658661,0.84497105,719.93,719.92,6.01438]
[1609550659863,6.01438,719.94,719.92,6.01438]
[1609550660362,1.35203607,719.93,719.92,6.01438]
[1609550661163,6.01438,719.94,719.92,6.01438]
[1609550663667,1.35198046,719.93,719.92,6.01438]
[1609550664970,0.84498966,719.93,719.92,6.01438]
[1609550666369,6.01438,719.94,719.92,6.01438]
[1609550668572,6.271015,719.97,719.92,6.01438]
[1609550668573,5.07002008,719.93,719.92,6.01438]
[1609550669272,5.07002008,719.93,719.74,0.6]
[1609550669872,5.07002008,719.93,719.92,6.01438]
[1609550671775,5.07002008,719.93,719.74,0.6]
[1609550672174,1.35194157,719.93,719.74,0.6]
[1609550672374,1.35194157,719.93,719.92,6.01438]
[1609550674075,1.35194194,719.95,719.92,6.01438]
[1609550675475,1.35193892,719.96,719.92,6.01438]
[1609550679385,4.96116696,719.97,719.92,6.01438]
[1609550680786,0.71818032,719.95,719.92,6.01438]
[1609550681487,0.71820347,719.94,719.92,6.01438]
[1609550683188,0.71820347,719.94,719.74,0.6]
[1609550684290,0.84489675,719.94,719.74,0.6]
[1609550684491,0.84489675,719.94,719.93,6.01438]
[1609550685794,0.71818031,719.95,719.93,6.01438]
[1609550687094,5.08791802,719.97,719.93,6.01438]
[1609550687095,0.7181829,719.94,719.93,6.01438]
[1609550688896,1.55838564,719.94,719.93,6.01438]
[1609550690498,0.84020274,719.94,719.93,6.01438]
[1609550691397,1.55838955,719.94,719.93,6.01438]
[1609550692099,0.84020274,719.94,719.93,6.01438]
[1609550696202,0.84020274,719.94,719.74,0.6]
[1609550696699,0.84020274,719.94,719.93,6.01438]
[1609550724937,1.55794751,719.94,719.93,6.01438]
[1609550727241,0.84020274,719.94,719.93,6.01438]
[1609550740161,0.84020274,719.94,719.93,6.49038]
[1609550744464,0.84020274,719.94,719.93,25.00657224]
[1609550745567,0.84020274,719.94,719.93,6.49038]
[1609550746569,0.84020274,719.94,719.93,25.00080479]
[1609550747768,0.84020274,719.94,719.93,18.98642479]
[1609550748570,3.163,720.28,719.93,0.476]
[1609550748872,0.71761121,720.58,719.93,0.476]
[1609550749271,0.71761121,720.58,720.57,6.01438]
[1609550750674,0.71761592,720.61,720.57,6.01438]
[1609550752276,5.52860263,720.6,720.57,6.01438]
[1609550754079,19.811,720.6,720.57,6.01438]
[1609550754681,33.311,720.6,720.57,6.01438]
[1609550754881,18.311,720.6,720.57,6.01438]
[1609550756084,33.311,720.6,720.57,6.01438]
[1609550756284,18.311,720.6,720.57,6.01438]
[1609550764293,15.0,720.59,720.57,6.01438]
[1609550766296,0.84432612,720.58,720.57,6.01438]
[1609550767198,0.84432612,720.58,720.1,11.7855332]
[1609550767399,5.06664849,720.58,720.5,6.01438]
[1609550767599,15.0,720.57,720.02,11.78602558]
[1609550768005,17.8013,720.57,720.02,11.78602558]
[1609550768202,0.71785448,720.37,719.93,0.476]
[1609550768401,5.20785448,720.37,719.93,0.476]
[1609550768601,15.0,720.36,719.93,0.476]
[1609550769405,0.71789565,720.27,719.93,0.476]
[1609550770605,0.71791241,720.24,719.93,0.476]
[1609550771404,0.71791241,720.24,720.23,6.01438]
[1609550771605,15.71791241,720.24,720.23,6.01438]
[1609550772109,15.84463164,720.24,720.23,6.01438]
[1609550773808,0.84463164,720.24,720.23,6.01438]
[1609550776411,0.84463164,720.24,719.93,0.476]
[1609550777412,6.01438,720.12,720.05,6.01438]
[1609550777612,15.0,720.11,719.93,0.476]
[1609550779413,15.0,720.11,720.03,6.01438]
[1609550780418,0.84488601,720.05,720.03,6.01438]
[1609550782716,1.35183273,720.06,720.03,6.01438]
[1609550783417,0.71816144,720.04,720.03,6.01438]
[1609550784318,0.7181669,720.05,720.03,6.01438]
[1609550785319,0.84490224,720.07,720.03,6.01438]
[1609550786220,0.71816403,720.05,720.03,6.01438]
[1609550787521,15.0,720.11,720.03,6.01438]
[1609550787522,0.71815191,720.06,720.03,6.01438]
[1609550788524,0.71811849,720.07,720.03,6.01438]
[1609550790028,3.0,720.12,720.03,6.01438]
[1609550790226,0.71799109,720.13,720.03,6.01438]
[1609550790931,0.71798319,720.24,720.03,6.01438]
[1609550791529,0.71798319,720.24,720.23,6.01438]
[1609550792431,0.71800645,720.26,720.23,6.01438]
[1609550793333,3.45610645,720.26,720.23,6.01438]
[1609550793533,15.0,720.25,720.23,6.01438]
[1609550794132,15.84482028,720.25,720.23,6.01438]
[1609550795036,5.06904509,720.24,720.23,6.01438]
[1609550795233,20.06904509,720.24,720.23,6.01438]
[1609550798839,20.06904509,720.24,719.93,0.476]
[1609550799644,15.0,720.13,720.09,6.01438]
[1609550800045,4.256,720.13,720.09,6.01438]
[1609550800747,0.84477542,720.1,720.09,6.01438]